bitfinex/quotes_SOLUSD_20250123
["timestamp","ask_amount","ask_price","bid_price","bid_amount"]
[1737600781665,36.9669161,248.44,248.43,0.03]
[1737600781967,23.776884,248.43,248.3,11.6536321]
[1737600782172,23.776884,248.36,248.29,312.0]
[1737600782676,27.803384,248.36,248.29,312.0]
[1737600782878,27.803384,248.36,248.28,11.7166321]
[1737600783183,23.776884,248.34,248.28,0.063]
[1737600783377,11.6536321,248.35,248.28,0.063]
[1737600784166,23.776884,248.34,248.28,0.063]
[1737600784496,23.776884,248.32,248.28,0.063]
[1737600785378,27.803984,248.32,248.28,0.063]
[1737600788788,11.6536321,248.37,248.28,11.7166321]
[1737600789485,27.7501791,248.37,248.28,11.7166321]
[1737600789796,11.6536321,248.37,248.28,15.7442321]
[1737600790002,23.776884,248.36,248.28,15.7442321]
[1737600790677,93.5,248.43,248.3,11.6536321]
[1737600790678,31.4238641,248.39,248.3,11.6536321]
[1737600790877,15.6796321,248.39,248.3,15.6808321]
[1737600791178,23.776884,248.38,248.3,15.6808321]
[1737600792087,15.6796321,248.39,248.28,11.7166321]
[1737600792088,11.6536321,248.37,248.28,11.7166321]
[1737600792389,23.776884,248.36,248.28,11.7166321]
[1737600793776,23.776884,248.36,248.28,15.7442321]
[1737600793973,11.6536321,248.37,248.28,15.7442321]
[1737600794492,23.776884,248.36,248.28,15.7442321]
[1737600795193,39.4564161,248.39,248.31,20.0]
[1737600795380,0.063,248.43,248.36,11.6536321]
[1737600796091,23.839884,248.43,248.36,11.6536321]
[1737600796390,11.6536321,248.41,248.35,20.0]
[1737600796697,11.6536321,248.39,248.3,15.6808321]
[1737600796992,11.6536321,248.39,248.3,327.6808321]
[1737600797297,23.776884,248.38,248.3,327.6808321]
[1737600797471,23.776884,248.38,248.3,15.6808321]
[1737600797900,0.063,248.43,248.36,11.6536321]
[1737600798109,23.839884,248.43,248.36,11.6536321]
[1737600798395,0.063,248.43,248.38,11.6536321]
[1737600798983,0.063,248.43,248.36,11.6536321]
[1737600800394,39.5188161,248.43,248.34,11.6536321]
[1737600800704,23.776884,248.4,248.32,11.6536321]
[1737600801993,23.776884,248.38,248.3,11.6536321]
[1737600802193,23.776884,248.38,248.33,20.0]
[1737600802693,23.776884,248.38,248.3,11.6836321]
[1737600803089,23.776884,248.38,248.3,0.03]
[1737600803090,11.6536321,248.35,248.3,0.03]
[1737600803605,11.6536321,248.33,248.3,0.03]
[1737600804904,23.776884,248.31,248.3,0.03]
[1737600806205,11.6536321,248.33,248.3,0.03]
[1737600806383,4.0262,248.38,248.3,11.6836321]
[1737600806899,23.776884,248.37,248.3,11.6836321]
[1737600811714,15.6793321,248.41,248.32,11.6536321]
[1737600812010,93.5,248.42,248.34,11.6536321]
[1737600812304,23.776884,248.41,248.34,11.6536321]
[1737600812694,11.7166321,248.43,248.34,11.6536321]
[1737600812695,23.776884,248.42,248.34,11.6536321]
[1737600812995,27.802284,248.42,248.34,11.6536321]
[1737600813516,11.6536321,248.41,248.32,11.6536321]
[1737600814700,23.776884,248.39,248.32,11.6536321]
[1737600814906,23.776884,248.39,248.34,11.6536321]
[1737600815204,0.063,248.43,248.37,11.6536321]
[1737600815506,0.063,248.43,248.4,11.6536321]
[1737600815805,23.839884,248.43,248.4,11.6536321]
[1737600816393,23.839884,248.43,248.33,0.60381727]
[1737600816394,27.865184,248.43,248.36,11.6536321]
[1737600816704,27.865184,248.43,248.34,11.6536321]
[1737600816705,11.6536321,248.42,248.34,11.6536321]
[1737600816909,4.0256,248.41,248.34,11.6536321]
[1737600818511,23.839884,248.43,248.36,11.6536321]
[1737600818805,27.865284,248.43,248.34,11.6536321]
[1737600818988,23.776884,248.39,248.3,11.6836321]
[1737600821307,23.776884,248.37,248.3,11.6836321]
[1737600822511,23.776884,248.37,248.32,11.6536321]
[1737600824610,109.1791321,248.42,248.34,11.6536321]
[1737600824790,0.063,248.43,248.36,11.6536321]
[1737600825299,0.063,248.43,248.38,11.6536321]
[1737600825603,23.839884,248.43,248.38,11.6536321]
[1737600825803,23.839884,248.43,248.4,11.6536321]
[1737600826116,0.063,248.43,248.4,11.6536321]
[1737600827097,0.063,248.43,248.4,15.6793321]
[1737600827793,0.063,248.43,248.4,11.6536321]
[1737600830003,0.063,248.43,248.4,15.6793321]
[1737600831103,0.063,248.43,248.42,11.6536321]
[1737600832118,0.063,248.43,248.4,11.6536321]
[1737600832319,0.063,248.43,248.42,31.6536321]
[1737600833219,0.063,248.43,248.42,35.6790321]
[1737600833816,18.1158321,248.57,248.42,45.7426321]
[1737600834012,23.776884,248.56,248.49,11.6536321]
[1737600836003,11.6536321,248.53,248.45,11.6536321]
[1737600836208,11.6536321,248.51,248.44,4.025]
[1737600838116,23.776884,248.52,248.45,11.6536321]
[1737600839325,0.0001,248.54,248.48,11.6536321]
[1737600839806,23.776884,248.52,248.44,11.6536321]
[1737600840017,23.776884,248.5,248.42,11.6536321]
[1737600840801,23.776884,248.48,248.4,11.6836321]
[1737600840998,23.776884,248.46,248.4,0.03]
[1737600841226,23.776884,248.46,248.4,4.0557]
[1737600841730,23.776884,248.44,248.4,0.03]
[1737600842104,11.6536321,248.43,248.4,0.03]
[1737600842423,23.776884,248.44,248.4,0.03]
[1737600842424,105.1536321,248.41,248.4,0.03]
[1737600842621,128.9305161,248.41,248.4,0.03]
[1737600843202,132.9561161,248.41,248.4,0.03]
[1737600844427,117.276884,248.41,248.4,0.03]
[1737600846708,93.5,248.48,248.4,0.03]
[1737600846909,93.5,248.48,248.42,11.6536321]
[1737600847434,93.5,248.49,248.42,11.6536321]
[1737600847911,109.1779321,248.49,248.42,11.6536321]
[1737600848312,93.5,248.49,248.42,11.6536321]
[1737600848526,23.776884,248.48,248.42,15.6789321]
[1737600848718,23.776884,248.48,248.42,11.6536321]
[1737600849325,0.063,248.43,248.42,11.6536321]
[1737600849628,0.063,248.43,248.4,0.03]
[1737600849831,11.7166321,248.43,248.4,0.03]
[1737600850035,117.276884,248.42,248.4,0.03]
[1737600851007,121.302284,248.42,248.4,0.03]
[1737600851225,117.276884,248.42,248.4,0.03]
[1737600852536,93.5,248.42,248.4,11.6836321]
[1737600853836,0.063,248.43,248.4,11.6836321]
[1737600854040,0.063,248.43,248.4,15.7093321]
[1737600854335,0.063,248.43,248.4,11.6836321]
[1737600854737,0.063,248.43,248.4,15.7093321]
[1737600855640,0.063,248.43,248.42,11.6536321]
[1737600857414,0.063,248.43,248.4,11.6836321]
[1737600858537,0.063,248.43,248.4,0.03]
[1737600867039,15.7419321,248.43,248.4,0.03]
[1737600867648,35.4305161,248.41,248.4,0.03]
[1737600868950,39.4561161,248.41,248.4,0.03]
[1737600871335,15.6792321,248.41,248.4,0.03]
[1737600871847,1.6316,248.43,248.4,0.03]
[1737600872052,5.6569,248.43,248.4,0.03]
[1737600872852,23.776884,248.42,248.4,0.03]
[1737600873856,23.839884,248.43,248.4,0.03]
[1737600874058,117.339884,248.43,248.4,0.03]
[1737600875347,93.563,248.43,248.4,0.03]
[1737600876347,23.776884,248.42,248.4,0.03]
[1737600877641,0.063,248.43,248.4,0.03]
[1737600883463,0.063,248.43,248.41,11.6536321]
[1737600884941,0.063,248.43,248.42,4.0254]
[1737600885147,93.5001,248.54,248.44,20.0]
[1737600885439,93.5001,248.54,248.47,11.6536321]
[1737600885635,93.5001,248.54,248.49,11.6536321]
[1737600885840,93.5001,248.54,248.53,11.6536321]
[1737600885841,0.0001,248.54,248.53,11.6536321]
[1737600892165,0.0001,248.54,248.53,12.25714553]
[1737600894351,0.0001,248.54,248.53,19.75714553]
[1737600894747,23.776884,248.67,248.56,20.0]
[1737600894969,1.6204,248.68,248.64,11.6536321]
[1737600894970,0.063,248.68,248.64,11.6536321]
[1737600895152,0.063,248.68,248.66,11.6536321]
[1737600898372,0.063,248.68,248.66,15.6750321]
[1737600898751,0.063,248.68,248.66,327.6750321]
[1737600900353,0.063,248.68,248.67,0.60300773]
[1737600900576,0.063,248.68,248.66,15.6750321]
[1737600901996,0.063,248.68,248.66,16.27811529]
[1737600902448,0.063,248.68,248.67,7.5]
[1737600902652,0.063,248.68,248.66,16.27811529]
[1737600903583,0.063,248.68,248.66,11.6536321]
[1737600905263,0.063,248.68,248.61,4.0222]
[1737600905468,0.063,248.68,248.62,11.6536321]
[1737600905774,0.063,248.68,248.6,11.6536321]
[1737600905775,23.839884,248.68,248.6,11.6536321]
[1737600905967,105.1536321,248.65,248.58,11.6536321]
[1737600906177,23.776884,248.62,248.56,11.6536321]
[1737600906775,23.776884,248.6,248.54,11.6536321]
[1737600907158,117.276884,248.6,248.54,11.6536321]
[1737600907358,117.276884,248.6,248.52,11.6536321]
[1737600907775,117.276884,248.6,248.54,11.6536321]
[1737600909987,117.276884,248.6,248.54,11.6836321]
[1737600910384,25.430484,248.58,248.54,0.03]
[1737600910579,23.776884,248.55,248.54,0.03]
[1737600911476,11.6536321,248.55,248.54,0.03]
[1737600912567,23.3072641,248.55,248.54,0.03]
[1737600912770,53.5444481,248.55,248.54,0.03]
[1737600913178,53.5444481,248.55,248.54,0.0001]
[1737600913365,23.776884,248.54,248.43,0.03]
[1737600913567,23.776884,248.45,248.43,0.03]
[1737600913899,35.4305161,248.44,248.43,0.03]
[1737600914763,11.6536321,248.44,248.43,0.03]
[1737600914961,13.3072321,248.46,248.43,0.03]
[1737600915174,1.6536,248.46,248.43,0.03]
[1737600915389,11.6536321,248.5,248.43,0.03]
[1737600916391,23.776884,248.49,248.43,312.03]
[1737600917291,23.776884,248.49,248.43,323.6836321]
[1737600917461,23.776884,248.49,248.43,312.03]
[1737600919189,117.276884,248.49,248.43,312.03]
[1737600920186,117.276884,248.49,248.43,0.03]
[1737600920689,23.776884,248.45,248.43,0.03]
[1737600922182,93.5,248.44,248.43,0.03]
[1737600928099,23.776884,248.47,248.43,0.03]
[1737600931594,93.5,248.48,248.43,0.03]
[1737600931897,93.5,248.48,248.45,11.6536321]
[1737600932495,23.776884,248.47,248.45,11.6536321]
[1737600932696,23.776884,248.47,248.45,323.6536321]
[1737600933197,23.776884,248.47,248.46,11.6536321]
[1737600933800,23.776884,248.47,248.45,323.6536321]
[1737600935698,23.776884,248.47,248.45,312.0]
[1737600936003,23.776884,248.47,248.44,11.6536321]
[1737600936194,23.776884,248.47,248.45,0.03]
[1737600937102,93.5,248.5,248.46,11.6536321]
[1737600937281,93.5,248.53,248.49,11.6536321]
[1737600937489,23.776884,248.52,248.49,11.6536321]
[1737600938702,117.276884,248.52,248.49,11.6536321]
[1737600939800,117.276884,248.52,248.47,11.6536321]
[1737600940306,117.276884,248.52,248.45,11.6836321]
[1737600940506,23.776884,248.5,248.45,0.03]
[1737600941195,23.776884,248.48,248.45,0.03]
[1737600942202,93.5,248.51,248.47,11.6536321]
[1737600942404,0.063,248.54,248.5,11.6536321]
[1737600942603,0.063,248.54,248.51,11.6536321]
[1737600942920,0.063,248.54,248.52,11.6536321]
[1737600944314,0.063,248.54,248.52,15.6774321]
[1737600948311,0.063,248.54,248.5,15.6776321]
[1737600948688,0.063,248.54,248.52,11.6536321]
[1737600948889,0.063,248.54,248.52,23.3072642]
[1737600949710,0.063,248.54,248.53,0.6034248]
[1737600949909,93.5,248.66,248.55,20.0]
[1737600950107,0.063,248.68,248.64,11.6536321]
[1737600950304,23.839884,248.68,248.64,11.6536321]
[1737600950500,0.063,248.68,248.64,15.6754321]
[1737600950707,23.839884,248.68,248.64,11.6536321]
[1737600951305,0.063,248.68,248.62,11.6536321]
[1737600951509,93.5,248.67,248.6,11.6536321]
[1737600952010,23.776884,248.66,248.6,11.6536321]
[1737600952200,23.776884,248.66,248.6,323.6536321]
[1737600953005,23.776884,248.66,248.6,327.6760321]
[1737600954520,23.776884,248.66,248.62,11.6536321]
[1737600954915,117.276884,248.66,248.62,11.6536321]
[1737600955495,117.276884,248.66,248.62,15.6756321]
[1737600958421,117.276884,248.66,248.62,327.6756321]
[1737600959122,117.276884,248.66,248.62,15.6756321]
[1737600959519,117.276884,248.66,248.64,11.6536321]
[1737600959704,0.063,248.68,248.64,11.6536321]
[1737600960222,0.063,248.66,248.64,11.6536321]
[1737600961515,0.063,248.66,248.62,11.6536321]
[1737600962221,23.776884,248.64,248.59,4.0225]
[1737600962828,23.776884,248.62,248.59,4.0225]
[1737600963023,93.5,248.61,248.59,4.0225]
[1737600963231,23.776884,248.6,248.57,4.0229]
[1737600964008,23.776884,248.63,248.57,4.0229]
[1737600965106,23.776884,248.63,248.6,312.0]
[1737600965312,23.776884,248.63,248.6,323.6536321]
[1737600966731,23.776884,248.63,248.6,11.6536321]
[1737600967134,23.776884,248.63,248.61,4.0223]
[1737600968931,23.776884,248.63,248.62,11.6536321]
[1737600969429,0.063,248.66,248.63,4.022]
[1737600969631,0.063,248.66,248.65,11.6536321]
[1737600969829,0.0001,248.68,248.67,20.0]
[1737600970014,0.03,248.78,248.67,39.75664714]
[1737600970338,0.03,248.78,248.77,11.6536321]
[1737600971332,0.03,248.78,248.75,11.6536321]
[1737600972042,0.03,248.78,248.77,11.6536321]
[1737600972615,93.5,248.73,248.66,11.6536321]
[1737600972815,23.776884,248.64,248.58,11.6536321]
[1737600973430,23.776884,248.64,248.62,11.6536321]
[1737600973734,93.5,248.68,248.62,11.6536321]
[1737600973937,23.776884,248.67,248.63,11.6536321]
[1737600974420,23.776884,248.67,248.61,11.6536321]
[1737600974631,23.776884,248.65,248.59,11.6536321]
[1737600975019,23.776884,248.63,248.59,11.6536321]
[1737600976435,23.776884,248.63,248.59,15.6762321]
[1737600976644,23.776884,248.63,248.61,11.6536321]
[1737600976831,93.5,248.64,248.61,11.6536321]
[1737600977142,93.5,248.64,248.63,11.6536321]
[1737600977651,93.5,248.71,248.63,11.6536321]
[1737600977820,93.5,248.71,248.64,4.0218]
[1737600978021,23.776884,248.7,248.65,11.6536321]
[1737600978325,93.5,248.71,248.64,4.0218]
[1737600978841,23.776884,248.7,248.65,11.6536321]
[1737600979843,23.776884,248.7,248.65,15.6752321]
[1737600982234,23.776884,248.68,248.63,11.6536321]
[1737600982544,93.5,248.64,248.59,11.6536321]
[1737600982720,23.776884,248.61,248.57,11.6536321]
[1737600984243,12.5,248.71,248.59,11.6536321]
[1737600984244,93.5,248.71,248.59,11.6536321]
[1737600984446,93.5,248.71,248.67,11.6536321]
[1737600984742,23.776884,248.7,248.67,11.6536321]
[1737600984946,0.063,248.71,248.69,11.6536321]
[1737600987951,0.063,248.71,248.67,11.6536321]
[1737600990234,0.063,248.71,248.69,11.6536321]
[1737600993446,93.563,248.71,248.69,11.6536321]
[1737600993654,23.776884,248.7,248.69,11.6536321]
[1737600999539,0.063,248.71,248.69,11.6536321]
[1737601000640,0.063,248.71,248.69,15.6746321]
[1737601001459,0.063,248.71,248.69,11.6536321]
[1737601002164,23.776884,248.7,248.69,11.6536321]
[1737601003743,93.563,248.71,248.68,0.03]
[1737601003744,0.063,248.71,248.68,0.03]
[1737601004064,117.276884,248.69,248.68,0.03]
[1737601006662,23.776884,248.69,248.68,0.03]
[1737601010466,23.839884,248.69,248.68,0.03]
[1737601013279,23.839884,248.69,248.63,0.03]
[1737601013280,37.851084,248.68,248.63,0.03]
[1737601014973,27.798084,248.68,248.63,11.6836321]
[1737601015190,27.798084,248.68,248.63,0.03]
[1737601015359,93.5,248.67,248.63,0.03]
[1737601015674,93.5,248.67,248.63,11.6836321]
[1737601016062,23.776884,248.64,248.63,11.6836321]
[1737601016266,23.776884,248.64,248.63,0.03]
[1737601016584,23.776884,248.67,248.63,0.03]
[1737601017362,20.0,248.65,248.63,0.03]
[1737601017685,93.5,248.65,248.63,11.6836321]
[1737601017874,0.063,248.69,248.63,11.6836321]
[1737601018079,0.063,248.69,248.68,11.6536321]
[1737601019158,0.063,248.69,248.68,15.6748321]
[1737601020363,0.063,248.69,248.68,327.6748321]
[1737601021179,0.063,248.69,248.68,323.6536321]
[1737601021555,0.03,248.78,248.71,20.0]
[1737601021758,0.03,248.78,248.77,11.6536321]
[1737601021980,0.03,248.78,248.76,11.6536321]
[1737601022364,117.276884,248.77,248.76,11.6536321]
[1737601022567,23.776884,248.76,248.74,11.6536321]
[1737601022771,23.776884,248.76,248.68,0.03]
[1737601022772,23.776884,248.75,248.72,11.6536321]
[1737601023583,23.776884,248.73,248.7,11.6536321]
[1737601023770,23.776884,248.71,248.68,11.6836321]
[1737601023966,117.276884,248.69,248.68,0.03]
[1737601024987,121.297884,248.69,248.68,0.03]
[1737601026677,27.797884,248.69,248.68,0.03]
[1737601029190,39.4515161,248.69,248.68,0.03]
[1737601029385,27.797884,248.69,248.68,0.03]
[1737601032063,23.776884,248.65,248.6,11.6536321]
[1737601032389,23.776884,248.65,248.58,11.6536321]
[1737601033388,4.0218,248.64,248.56,11.6536321]
[1737601034792,27.798684,248.64,248.56,11.6536321]
[1737601036765,27.798684,248.64,248.58,11.6536321]
[1737601036961,27.798684,248.64,248.6,11.6536321]
[1737601037375,27.798684,248.64,248.58,11.6536321]
[1737601038394,4.0215,248.66,248.62,11.6536321]
[1737601038587,4.0215,248.66,248.64,11.6536321]
[1737601039591,23.776884,248.68,248.64,11.6536321]
[1737601040792,4.0209,248.7,248.64,11.6536321]
[1737601040983,4.0209,248.7,248.68,11.6536321]
[1737601041182,5.526,248.72,248.68,11.6536321]
[1737601041386,1.5053,248.72,248.68,11.6536321]
[1737601041579,4.02,248.76,248.7,11.6536321]
[1737601041893,0.063,248.77,248.74,11.6536321]
[1737601042196,23.839884,248.77,248.74,11.6536321]
[1737601042388,27.859684,248.77,248.74,11.6536321]
[1737601042974,23.776884,248.75,248.72,11.6536321]
[1737601043487,23.776884,248.73,248.7,11.6536321]
[1737601045299,23.776884,248.73,248.72,11.6536321]
[1737601046473,47.859784,248.77,248.72,11.6536321]
[1737601046674,121.296784,248.76,248.74,11.6536321]
[1737601047876,117.276884,248.76,248.74,11.6536321]
[1737601048379,23.776884,248.74,248.72,11.6536321]
[1737601048579,23.776884,248.72,248.7,11.6536321]
[1737601049504,27.797484,248.72,248.7,11.6536321]
[1737601049685,23.776884,248.7,248.68,11.6536321]
[1737601050506,23.776884,248.69,248.68,11.6536321]
[1737601055100,23.776884,248.66,248.63,0.03]
[1737601055399,23.776884,248.64,248.63,0.03]
[1737601056381,23.776884,248.64,248.63,11.6836321]
[1737601056603,117.276884,248.64,248.63,11.6836321]
[1737601059498,117.276884,248.64,248.63,0.03]
[1737601059706,35.4305161,248.64,248.63,0.03]
[1737601059895,27.798884,248.63,248.55,11.6536321]
[1737601060226,23.776884,248.59,248.55,11.6536321]
[1737601060503,23.776884,248.57,248.54,0.03]
[1737601061395,27.799884,248.57,248.54,0.03]
[1737601062005,23.776884,248.57,248.54,0.03]
[1737601062186,23.776884,248.57,248.55,11.6536321]
[1737601062694,5.6881,248.63,248.55,11.6536321]
[1737601062894,23.776884,248.62,248.59,11.6536321]
[1737601064007,4.0218,248.65,248.59,11.6536321]
[1737601064192,93.5,248.63,248.61,11.6536321]
[1737601064397,93.5,248.63,248.62,11.6536321]
[1737601064905,23.776884,248.66,248.62,11.6536321]
[1737601066898,93.5,248.65,248.62,11.6536321]
[1737601067399,23.776884,248.64,248.62,11.6536321]
[1737601069814,23.776884,248.62,248.58,11.6536321]
[1737601070812,23.776884,248.6,248.58,11.6536321]
[1737601071008,23.776884,248.58,248.54,11.6836321]
[1737601071208,23.776884,248.56,248.54,11.6836321]
[1737601074518,4.0222,248.62,248.54,11.6836321]
[1737601074519,93.5,248.62,248.54,11.6836321]
[1737601074724,93.5,248.62,248.6,11.6536321]
[1737601075520,23.776884,248.61,248.6,11.6536321]
[1737601079624,23.776884,248.63,248.6,11.6536321]
[1737601081724,4.0221,248.63,248.6,11.6536321]
[1737601081921,4.0221,248.63,248.56,11.6536321]
[1737601082315,105.1536321,248.62,248.54,11.6836321]
[1737601082502,23.776884,248.61,248.54,0.03]
[1737601082900,23.776884,248.59,248.54,0.03]
[1737601083512,23.776884,248.57,248.54,0.03]
[1737601084825,27.799484,248.59,248.54,11.6836321]
[1737601086928,93.5,248.6,248.58,11.6536321]
[1737601087109,93.5,248.59,248.58,11.6536321]
[1737601087624,117.276884,248.59,248.58,11.6536321]
[1737601091524,23.776884,248.59,248.58,11.6536321]
[1737601096413,93.5,248.62,248.58,15.6763321]
[1737601096613,93.5,248.62,248.6,11.6536321]
[1737601098229,23.776884,248.61,248.6,15.6761321]
[1737601099125,0.063,248.63,248.6,27.3297642]
[1737601099317,0.063,248.63,248.62,23.3072642]
[1737601100322,0.063,248.63,248.62,27.3294642]
[1737601100936,0.063,248.64,248.62,27.3294642]
[1737601101507,0.063,248.69,248.62,27.3294642]
[1737601101812,11.653632,248.72,248.68,11.6536321]
[1737601102019,11.653632,248.72,248.7,11.6536321]
[1737601102330,23.776884,248.73,248.7,11.6536321]
[1737601102536,93.5,248.76,248.72,11.6536321]
[1737601102716,93.5,248.76,248.75,23.3072642]
[1737601103522,117.276884,248.76,248.75,23.3072642]
[1737601103922,93.5,248.76,248.75,23.3072642]
[1737601104335,117.276884,248.76,248.75,23.3072642]
[1737601104536,117.276884,248.76,248.75,11.6536321]
[1737601104836,23.776884,248.76,248.75,11.6536321]
[1737601106338,0.03,248.78,248.75,23.3072642]
[1737601107441,0.03,248.78,248.75,11.6536321]
[1737601108142,0.063,248.76,248.75,11.6536321]
[1737601108319,0.063,248.76,248.75,23.3072642]
[1737601110939,0.063,248.76,248.75,11.6536321]
[1737601115323,23.839884,248.76,248.75,11.6536321]
[1737601119532,0.063,248.76,248.75,11.6536321]
[1737601119843,0.063,248.76,248.75,23.3072642]
[1737601120338,0.063,248.76,248.75,11.6536321]
[1737601120534,0.063,248.76,248.75,23.3072642]
[1737601122862,0.063,248.76,248.75,335.3072642]
[1737601123757,0.063,248.76,248.75,349.19790145]
[1737601124247,0.063,248.79,248.78,20.0]
[1737601124459,0.063,248.88,248.78,27.43958029]
[1737601124663,0.063,248.88,248.87,7.43958029]
[1737601125457,0.063,248.88,248.87,37.19790145]
[1737601127730,0.063,248.88,248.87,23.2318921]
[1737601129051,0.063,248.88,248.87,11.61594605]
[1737601129238,0.063,248.88,248.87,23.2318921]
[1737601129557,0.063,248.89,248.87,27.2498921]
[1737601129730,0.063,248.89,248.88,23.2318921]
[1737601131525,93.5,248.92,248.89,4.0178]
[1737601131730,117.276884,248.92,248.91,11.61594605]
[1737601132259,116.776884,248.92,248.91,11.61594605]
[1737601133252,23.776884,248.92,248.91,11.61594605]
[1737601133947,23.839884,248.92,248.91,11.61594605]
[1737601137455,29.402884,248.91,248.89,11.61594605]
[1737601141776,93.0,248.88,248.87,11.61594605]
[1737601142278,116.776884,248.87,248.85,11.61594605]
[1737601143679,120.795084,248.87,248.85,11.61594605]
[1737601146870,116.776884,248.86,248.85,11.61594605]
[1737601147264,116.776884,248.86,248.85,11.64594605]
[1737601147773,116.776884,248.86,248.85,7.46790709]
[1737601150958,23.776884,248.86,248.85,7.46790709]
[1737601155313,1.6085,248.91,248.85,7.46790709]
[1737601155461,1.6085,248.91,248.9,7.43790709]
[1737601155663,0.063,248.92,248.9,7.43790709]
[1737601156783,23.776884,248.91,248.9,7.43790709]
[1737601159882,0.063,248.92,248.9,7.43790709]
[1737601160187,116.776884,248.91,248.9,7.43790709]
[1737601162595,116.776884,248.91,248.85,0.03]
[1737601162596,23.776884,248.9,248.88,7.43790709]
[1737601162775,23.776884,248.9,248.86,7.43790709]
[1737601162974,4.0175,248.91,248.86,7.43790709]
[1737601163496,1.5255,248.87,248.85,0.03]
[1737601163697,23.776884,248.86,248.85,0.03]
[1737601164688,27.795184,248.86,248.85,0.03]
[1737601165401,93.0,248.83,248.79,7.46790709]
[1737601165606,93.0,248.8,248.79,0.03]
[1737601166679,116.776884,248.8,248.79,0.03]
[1737601167009,116.776884,248.8,248.79,7.46790709]
[1737601168293,93.0,248.8,248.79,7.46790709]
[1737601168686,93.0,248.85,248.79,11.48720709]
[1737601168887,1.5255,248.87,248.84,7.43790709]
[1737601169202,1.5255,248.87,248.86,7.43790709]
[1737601169920,25.302384,248.87,248.86,7.43790709]
[1737601170606,23.776884,248.86,248.84,7.43790709]
[1737601170986,5.5437,248.87,248.84,7.43790709]
[1737601171396,5.5437,248.87,248.86,7.46790709]
[1737601175816,5.5437,248.87,248.86,0.03]
[1737601177412,5.5437,248.87,248.8,7.43790709]
[1737601177413,15.5891,248.87,248.8,7.43790709]
[1737601177708,23.776884,248.8,248.79,0.03]
[1737601178094,23.776884,248.83,248.79,0.03]
[1737601178293,23.776884,248.81,248.79,0.03]
[1737601178710,116.776884,248.8,248.79,0.03]
[1737601179211,123.290584,248.79,248.71,7.43790709]
[1737601179394,23.776884,248.77,248.69,7.46790709]
[1737601179591,93.0,248.74,248.69,7.46790709]
[1737601181212,23.776884,248.71,248.69,7.46790709]
[1737601183211,93.0,248.77,248.69,11.48890709]
[1737601183518,93.0,248.76,248.75,7.43790709]
[1737601183704,116.776884,248.76,248.75,7.43790709]
[1737601183900,23.776884,248.75,248.72,7.43790709]
[1737601184103,23.776884,248.76,248.72,7.43790709]
[1737601185117,27.796484,248.78,248.72,7.43790709]
[1737601187318,23.776884,248.76,248.74,7.43790709]
[1737601188429,93.0,248.75,248.69,7.46790709]
[1737601188717,23.776884,248.74,248.69,0.03]
[1737601189316,93.0,248.7,248.69,0.03]
[1737601189695,116.776884,248.7,248.69,0.03]
[1737601190018,116.776884,248.7,248.69,7.46790709]
[1737601191312,120.797784,248.7,248.69,7.46790709]
[1737601192025,120.797784,248.7,248.69,0.03]
[1737601192515,27.797784,248.7,248.69,0.03]
[1737601193017,27.797784,248.7,248.65,7.46790709]
[1737601193222,118.320284,248.69,248.65,0.03]
[1737601193515,23.776884,248.67,248.65,0.03]
[1737601194396,7.43790709,248.66,248.65,0.0001]
[1737601194919,116.776884,248.66,248.65,0.0001]
[1737601195304,116.776884,248.66,248.65,7.43800709]
[1737601195507,120.798384,248.66,248.65,0.0001]
[1737601196529,23.776884,248.65,248.61,0.03]
[1737601196728,7.43790709,248.64,248.61,0.03]
[1737601197418,27.799084,248.62,248.61,0.03]